fUSD/lending_fUSD_20260612
["ID","MTS","AMOUNT","RATE_DAILY","PERIOD"]
[424870448,1781218252000,-300.0,0.00034999,10]
[424870450,1781218252000,-300.0,0.00034999,10]
[424870449,1781218252000,-666.0,0.00034999,30]
[424870452,1781218252000,-500.0,0.00034999,31]
[424870456,1781218252000,-232402.62576167,0.00035,7]
[424870454,1781218252000,-300.0,0.00034999,30]
[424870455,1781218252000,-8537.87515444,0.00035,10]
[424870412,1781218252000,-500.0,0.000347,12]
[424870451,1781218252000,-666.0,0.00034999,30]
[424870434,1781218252000,-500.0,0.000349,12]
[424870435,1781218252000,-500.0,0.000349,37]
[424870442,1781218252000,-1206.89910895,0.0003497,2]
[424870413,1781218252000,-158.2145375,0.00034721,2]
[424870419,1781218252000,-64767.31559185,0.00034765,120]
[424870417,1781218252000,-1359.94129343,0.00034755,7]
[424870415,1781218252000,-10069.4923954,0.0003474,7]
[424870421,1781218252000,-3681.807,0.00034773,2]
[424870438,1781218252000,-213.0,0.00034914,3]
[424870422,1781218252000,-1570.0,0.00034795,30]
[424870453,1781218252000,-500.0,0.00034999,30]
[424870430,1781218252000,-3681.807,0.00034896,2]
[424870423,1781218252000,-1500.0,0.00034795,2]
[424870424,1781218252000,-500.0,0.00034799,30]
[424870432,1781218252000,-286.0,0.000349,120]
[424870433,1781218252000,-1500.0,0.000349,7]
[424870425,1781218252000,-500.0,0.000348,12]
[424870429,1781218252000,-2008.916,0.00034896,2]
[424870427,1781218252000,-355.0,0.00034839,10]
[424870426,1781218252000,-650.42983055,0.00034824,7]
[424870431,1781218252000,-769.55233372,0.000349,90]
[424870428,1781218252000,-202.0,0.0003488,30]
[424870465,1781218253000,-12966.70820222,0.00035,7]
[424870464,1781218253000,-211.72124881,0.00035,7]
[424870462,1781218253000,-174.3887192,0.00035,7]
[424870457,1781218253000,-11753.80443313,0.00035,7]
[424870460,1781218253000,-150.0,0.00035,7]
[424870459,1781218253000,-4447.42549583,0.00035,7]
[424870466,1781218253000,-3895.61839148,0.00035,7]
[424870461,1781218253000,-150.0,0.00035,7]
[424870463,1781218253000,-1590.0,0.00035,7]
[424870458,1781218253000,-20636.23380002,0.00035,7]
[424870468,1781218253000,-250.0,0.00014,2]
[424870469,1781218253000,-300.0,0.00016,2]
[424870471,1781218253000,-45.25000526,0.0002755,2]
[424870470,1781218253000,-111.03999474,0.0002755,2]
[424870472,1781218253000,-156.29,0.00027594,7]
[424870473,1781218253000,-156.29,0.00027639,30]
[424870475,1781218253000,-5000.0,0.0002772,2]
[424870474,1781218253000,-156.29,0.00027683,2]
[424870477,1781218253000,-150.22234143,0.000299,2]
[424870476,1781218253000,-156.29,0.00027728,7]
[424870467,1781218253000,-396.71618048,0.00035,7]
[424870496,1781218254000,-156.36,0.0002813,7]
[424870489,1781218254000,-156.29,0.00027817,2]
[424870486,1781218254000,-151.0,0.00018,2]
[424870487,1781218254000,-350.0,0.00018,2]
[424870485,1781218254000,-8492.98822213,0.00035,7]
[424870478,1781218254000,-168.0,0.00031142,30]
[424870480,1781218254000,-300.0,0.0003445,2]
[424870482,1781218254000,-156.29,0.00027773,30]
[424870481,1781218254000,-204.51862841,0.0003445,2]
[424870499,1781218254000,-323.965948,0.00033177,120]
[424870479,1781218254000,-168.0,0.00032142,30]
[424870484,1781218254000,-453.9952082,0.00035,7]
[424870497,1781218254000,-222.897256,0.00032877,120]
[424870483,1781218254000,-95.48137159,0.0003445,2]
[424870492,1781218254000,-156.29,0.00027951,2]
[424870505,1781218254000,-200.24410894,0.0003445,2]
[424870503,1781218254000,-168.0,0.00034142,30]
[424870502,1781218254000,-348.357421,0.00034078,120]
[424870501,1781218254000,-348.357421,0.00033777,120]
[424870500,1781218254000,-323.965948,0.00033477,120]
[424870504,1781218254000,-300.0,0.0003445,2]
[424870494,1781218254000,-156.29,0.0002804,30]
[424870493,1781218254000,-156.29,0.00027996,7]
[424870490,1781218254000,-156.29,0.00027862,7]
[424870491,1781218254000,-156.29,0.00027906,30]
[424870498,1781218254000,-168.0,0.00033142,30]
[424870495,1781218254000,-156.29,0.00028085,2]
[424870488,1781218254000,-400.0,0.0002,2]
[424870507,1781218357000,-168.18,0.00011875,2]
[424870515,1781218713000,-150.0,0.00012023,2]
[424870524,1781219072000,-190.83726698,0.0001138,2]
[424870525,1781219126000,-193.0,0.0001138,2]
[424870526,1781219178000,-166.66,0.0001138,2]
[424870527,1781219231000,-500.0,0.00011504,2]
[424870528,1781219286000,-200.0,0.00011534,2]
[424870529,1781219338000,-242.97,0.00011569,2]
[424870530,1781219392000,-166.66,0.00011619,2]
[424870573,1781219446000,-166.66,0.00011859,2]
[424870769,1781219448000,-1971.58,0.00012103,2]
[424870767,1781219448000,-166.66,0.00012098,2]
[424870764,1781219448000,-160.0,0.00012098,2]
[424870755,1781219448000,-2859.81,0.00012072,2]
[424870752,1781219448000,-1200.0,0.00012072,2]
[424870747,1781219448000,-253.58576298,0.00012072,2]
[424870749,1781219448000,-1000.0,0.00012072,2]
[424870757,1781219448000,-215.95576085,0.00012072,2]
[424870762,1781219448000,-190.83726698,0.00012072,2]
[424870760,1781219448000,-190.83726698,0.00012072,2]
[424870756,1781219448000,-286.07,0.00012072,2]
[424870730,1781219448000,-386.41423702,0.00012072,2]
[424870728,1781219448000,-321.83,0.00011979,2]
[424870777,1781219448000,-2859.81,0.00012374,2]
[424870773,1781219448000,-166.66,0.00012338,2]
[424870754,1781219448000,-2230.96,0.00012072,2]
[424870779,1781219448000,-3600.0,0.000125,4]
[424870771,1781219448000,-210.02,0.00012329,2]
[424870811,1781219448000,-89.67207941,0.00012651,2]
[424870809,1781219448000,-500.0,0.00012651,2]
[424870800,1781219448000,-500.0,0.00012651,2]
[424870804,1781219448000,-500.0,0.00012651,2]
[424870807,1781219448000,-500.0,0.00012651,2]
[424870792,1781219448000,-7300.0,0.000126,4]
[424870802,1781219448000,-500.0,0.00012651,2]
[424870796,1781219448000,-1070.90832178,0.00012651,3]
[424870794,1781219448000,-201.28290493,0.00012651,3]
[424870788,1781219448000,-274.31352455,0.00012576,2]
[424870790,1781219448000,-166.66,0.00012578,2]
[424870785,1781219448000,-327.12986571,0.00012576,2]
[424870783,1781219448000,-39113.5737,0.00012552,2]
[424870781,1781219448000,-10420.583074,0.00012534,2]
[424870798,1781219448000,-500.0,0.00012651,2]
[424870823,1781219449000,-2195.20165298,0.00012676,2]
[424870821,1781219449000,-664.60834702,0.00012676,2]
[424870819,1781219449000,-500.0,0.00012651,2]
[424870826,1781219449000,-1070.90832178,0.00012751,3]
[424870820,1781219449000,-500.0,0.00012651,2]
[424870817,1781219449000,-410.32792059,0.00012651,2]
[424870824,1781219449000,-250.0,0.00012688,2]
[424870825,1781219449000,-11000.0,0.000127,4]
[424870827,1781219449000,-14700.0,0.000128,4]
[424870829,1781219449000,-535.48704977,0.000129,4]
[424870828,1781219449000,-4873.3188277,0.000129,4]
[424870818,1781219449000,-500.0,0.00012651,2]
[424870830,1781219449000,-700.19088126,0.000129,4]
[424870846,1781219450000,-500.0,0.00013698,2]
[424870844,1781219450000,-640.0,0.00013581,2]
[424870848,1781219450000,-500.0,0.00013698,2]
[424870853,1781219450000,-500.0,0.00013698,2]
[424870856,1781219450000,-500.0,0.00013698,2]
[424870851,1781219450000,-500.0,0.00013698,2]
[424870842,1781219450000,-150.0,0.00013451,2]
[424870857,1781219450000,-500.0,0.00013698,2]
[424870855,1781219450000,-500.0,0.00013698,2]
[424870854,1781219450000,-500.0,0.00013698,2]
[424870850,1781219450000,-500.0,0.00013698,2]
[424870840,1781219450000,-152.0,0.00013071,2]
[424870841,1781219450000,-2859.81,0.00013279,2]
[424870843,1781219450000,-257.22,0.00013525,2]
[424870845,1781219450000,-1200.0,0.00013581,2]
[424870838,1781219450000,-193.0,0.00013045,2]
[424870839,1781219450000,-152.0,0.00013071,2]
[424870833,1781219450000,-9711.86331691,0.000129,4]
[424870836,1781219450000,-210.96,0.00012987,2]
[424870834,1781219450000,-500.0,0.00012977,2]
[424870835,1781219450000,-2859.81,0.00012977,2]
[424870837,1781219450000,-150.03,0.00012987,2]
[424870831,1781219450000,-1526.65649088,0.000129,4]
[424870832,1781219450000,-1052.48343348,0.000129,4]
[424870852,1781219450000,-500.0,0.00013698,2]
[424870847,1781219450000,-500.0,0.00013698,2]
[424870858,1781219450000,-500.0,0.00013698,2]
[424870849,1781219450000,-500.0,0.00013698,2]
[424870859,1781219450000,-500.0,0.00013698,2]
[424870887,1781219450000,-2131.1,0.00013698,2]
[424870869,1781219450000,-500.0,0.00013698,2]
[424870885,1781219450000,-2131.1,0.00013698,2]
[424870884,1781219450000,-2131.1,0.00013698,2]
[424870886,1781219450000,-2131.1,0.00013698,2]
[424870877,1781219450000,-2131.1,0.00013698,2]
[424870881,1781219450000,-2131.1,0.00013698,2]
[424870878,1781219450000,-2131.1,0.00013698,2]
[424870879,1781219450000,-2131.1,0.00013698,2]
[424870875,1781219450000,-500.0,0.00013698,2]
[424870882,1781219450000,-2131.1,0.00013698,2]
[424870873,1781219450000,-500.0,0.00013698,2]
[424870871,1781219450000,-500.0,0.00013698,2]
[424870880,1781219450000,-2131.1,0.00013698,2]
[424870883,1781219450000,-2131.1,0.00013698,2]
[424870876,1781219450000,-2131.1,0.00013698,2]
[424870874,1781219450000,-500.0,0.00013698,2]
[424870863,1781219450000,-500.0,0.00013698,2]
[424870860,1781219450000,-500.0,0.00013698,2]
[424870861,1781219450000,-500.0,0.00013698,2]
[424870864,1781219450000,-500.0,0.00013698,2]
[424870865,1781219450000,-500.0,0.00013698,2]
[424870862,1781219450000,-500.0,0.00013698,2]
[424870866,1781219450000,-500.0,0.00013698,2]
[424870868,1781219450000,-500.0,0.00013698,2]
[424870867,1781219450000,-500.0,0.00013698,2]
[424870872,1781219450000,-500.0,0.00013698,2]
[424870870,1781219450000,-500.0,0.00013698,2]
[424870917,1781219451000,-168.18,0.00017813,2]
[424870910,1781219451000,-199.5,0.00016519,2]
[424870911,1781219451000,-1613.0535,0.00016593,2]
[424870913,1781219451000,-1200.0,0.00016599,2]
[424870916,1781219451000,-1734.62772924,0.00017689,2]
[424870918,1781219451000,-164.27,0.000179,2]
[424870919,1781219451000,-503.0,0.00018,2]
[424870915,1781219451000,-1672.7364795,0.00017141,2]
[424870920,1781219451000,-640.0,0.00018108,2]
[424870923,1781219451000,-344.6,0.0001841,2]
[424870924,1781219451000,-1393.94,0.0001872,2]
[424870921,1781219451000,-1200.0,0.00018108,2]
[424870925,1781219451000,-1865.36488656,0.00018785,2]
[424870928,1781219451000,-327.12986567,0.00019095,2]
[424870926,1781219451000,-274.31352451,0.00018954,2]
[424870927,1781219451000,-503.0,0.00019069,3]
[424870929,1781219451000,-1934.38338736,0.00019333,2]
[424870912,1781219451000,-640.0,0.00016599,2]
[424870931,1781219451000,-9999.99,0.00019339,2]
[424870922,1781219451000,-1798.80895522,0.00018237,2]
[424870914,1781219451000,-327.12986567,0.00016922,2]
[424870894,1781219451000,-500.0,0.00013698,2]
[424870903,1781219451000,-1200.0,0.0001509,2]
[424870934,1781219451000,-2131.1,0.00019999,2]
[424870890,1781219451000,-2131.1,0.00013698,2]
[424870892,1781219451000,-500.0,0.00013698,2]
[424870888,1781219451000,-2131.1,0.00013698,2]
[424870889,1781219451000,-2131.1,0.00013698,2]
[424870891,1781219451000,-2131.1,0.00013698,2]
[424870893,1781219451000,-500.0,0.00013698,2]
[424870895,1781219451000,-200.0,0.00013699,2]
[424870897,1781219451000,-327.12986567,0.00014749,2]
[424870909,1781219451000,-450.27,0.00016438,2]
[424870896,1781219451000,-164.27,0.000137,2]
[424870899,1781219451000,-67644.76213938,0.00015,2]
[424870901,1781219451000,-450.27,0.00015068,2]
[424870900,1781219451000,-31749.00003564,0.00015,2]
[424870902,1781219451000,-640.0,0.0001509,2]
[424870904,1781219451000,-250.0,0.00015353,2]
[424870908,1781219451000,-344.6,0.00016438,2]
[424870907,1781219451000,-1555.5,0.00016045,2]
[424870906,1781219451000,-274.31352451,0.00015765,2]
[424870905,1781219451000,-1500.0,0.00015497,2]
[424870898,1781219451000,-200.0,0.000148,2]
[424870930,1781219451000,-150.99,0.00019339,2]
[424870945,1781219451000,-518.0,0.0002,2]
[424870932,1781219451000,-999.99,0.00019339,2]
[424870958,1781219451000,-151.0,0.00020429,2]
[424870963,1781219451000,-151.0,0.00020429,2]
[424870959,1781219451000,-151.0,0.00020429,2]
[424870960,1781219451000,-151.0,0.00020429,2]
[424870964,1781219451000,-151.0,0.00020429,2]
[424870965,1781219451000,-151.0,0.00020429,2]
[424870966,1781219451000,-151.0,0.00020429,2]
[424870973,1781219451000,-202.0,0.00021,2]
[424870967,1781219451000,-151.0,0.00020429,2]
[424870969,1781219451000,-151.0,0.00020429,2]
[424870972,1781219451000,-164.27,0.00021,2]
[424870974,1781219451000,-153.0,0.00021,2]
[424870968,1781219451000,-151.0,0.00020429,2]
[424870971,1781219451000,-2157.14243826,0.00020977,2]
[424870976,1781219451000,-168.0,0.00021,2]
[424870977,1781219451000,-272.0,0.00021,2]
[424870978,1781219451000,-153.0,0.00021,2]
[424870975,1781219451000,-582.0,0.00021,2]
[424870933,1781219451000,-2005.9555727,0.00019881,2]
[424870962,1781219451000,-151.0,0.00020429,2]
[424870957,1781219451000,-151.0,0.00020429,2]
[424870970,1781219451000,-2080.17592889,0.00020429,2]
[424870956,1781219451000,-151.0,0.00020429,2]
[424870937,1781219451000,-153.0,0.0002,2]
[424870961,1781219451000,-151.0,0.00020429,2]
[424870935,1781219451000,-4500.031875,0.0002,2]
[424870936,1781219451000,-202.0,0.0002,2]
[424870939,1781219451000,-157.0,0.0002,2]
[424870938,1781219451000,-582.0,0.0002,2]
[424870949,1781219451000,-344.6,0.00020381,2]
[424870940,1781219451000,-157.0,0.0002,2]
[424870948,1781219451000,-503.0,0.00020138,4]
[424870950,1781219451000,-151.0,0.00020429,2]
[424870941,1781219451000,-272.0,0.0002,2]
[424870943,1781219451000,-154.0,0.0002,2]
[424870942,1781219451000,-153.0,0.0002,2]
[424870944,1781219451000,-151.0,0.0002,2]
[424870946,1781219451000,-444.0,0.0002,2]
[424870951,1781219451000,-151.0,0.00020429,2]
[424870954,1781219451000,-151.0,0.00020429,2]
[424870953,1781219451000,-151.0,0.00020429,2]
[424870947,1781219451000,-157.0,0.0002,2]
[424870955,1781219451000,-151.0,0.00020429,2]
[424870952,1781219451000,-151.0,0.00020429,2]
[424871003,1781219452000,-2405.55389863,0.00022621,2]
[424871012,1781219452000,-518.0,0.00023,2]
[424871014,1781219452000,-157.0,0.00023,2]
[424871015,1781219452000,-150.0,0.00023014,2]
[424871013,1781219452000,-444.0,0.00023,2]
[424871010,1781219452000,-154.0,0.00023,2]
[424871016,1781219452000,-1573.66336439,0.00023169,2]
[424871009,1781219452000,-272.0,0.00023,2]
[424871008,1781219452000,-582.0,0.00023,2]
[424871018,1781219452000,-327.12986567,0.0002344,2]
[424871017,1781219452000,-503.0,0.00023345,7]
[424871011,1781219452000,-158.0,0.00023,2]
[424871024,1781219452000,-518.0,0.00024,2]
[424871020,1781219452000,-153.0,0.00024,2]
[424871019,1781219452000,-202.0,0.00024,2]
[424871023,1781219452000,-166.0,0.00024,2]
[424871027,1781219452000,-150.0,0.00024164,2]
[424871021,1781219452000,-582.0,0.00024,2]
[424871026,1781219452000,-169.80496035,0.00024,2]
[424871022,1781219452000,-272.0,0.00024,2]
[424871025,1781219452000,-444.0,0.00024,2]
[424871028,1781219452000,-164.27,0.000242,7]
[424871029,1781219452000,-344.6,0.00024324,2]
[424871002,1781219452000,-344.6,0.00022353,2]
[424871030,1781219452000,-503.0,0.00024414,8]
[424871004,1781219452000,-1393.94,0.00022691,2]
[424870981,1781219452000,-518.0,0.00021,2]
[424871006,1781219452000,-153.0,0.00023,2]
[424870984,1781219452000,-503.0,0.00021207,5]
[424870980,1781219452000,-151.0,0.00021,2]
[424870985,1781219452000,-327.12986567,0.00021268,2]
[424870982,1781219452000,-444.0,0.00021,2]
[424871031,1781219452000,-1000.0,0.00024658,2]
[424870983,1781219452000,-157.0,0.00021,2]
[424870986,1781219452000,-1340.83,0.00021273,2]
[424870979,1781219452000,-154.0,0.00021,2]
[424870987,1781219452000,-2236.95670847,0.00021525,2]
[424870988,1781219452000,-150.0,0.00021918,2]
[424870989,1781219452000,-202.0,0.00022,2]
[424871001,1781219452000,-503.0,0.00022276,6]
[424870990,1781219452000,-153.0,0.00022,2]
[424870995,1781219452000,-151.0,0.00022,2]
[424870992,1781219452000,-272.0,0.00022,2]
[424870991,1781219452000,-582.0,0.00022,2]
[424870996,1781219452000,-518.0,0.00022,2]
[424870994,1781219452000,-154.0,0.00022,2]
[424870997,1781219452000,-444.0,0.00022,2]
[424870998,1781219452000,-157.0,0.00022,2]
[424870999,1781219452000,-2319.72410669,0.00022073,2]
[424871000,1781219452000,-274.31352451,0.00022143,2]
[424871005,1781219452000,-202.0,0.00023,2]
[424871007,1781219452000,-1001.98149375,0.00023,2]
[424870993,1781219452000,-159.0,0.00022,2]
[424871034,1781219452000,-651.578143,0.0002478,7]
[424871078,1781219452000,-643.0,0.00027123,2]
[424871032,1781219452000,-159.78,0.00024658,2]
[424871065,1781219452000,-159.72,0.00026631,30]
[424871066,1781219452000,-150.0,0.00026641,2]
[424871070,1781219452000,-643.0,0.00027123,2]
[424871064,1781219452000,-159.78,0.00026631,30]
[424871072,1781219452000,-643.0,0.00027123,2]
[424871068,1781219452000,-643.0,0.00027123,2]
[424871071,1781219452000,-643.0,0.00027123,2]
[424871073,1781219452000,-643.0,0.00027123,2]
[424871074,1781219452000,-643.0,0.00027123,2]
[424871067,1781219452000,-158.55225597,0.00027044,2]
[424871069,1781219452000,-643.0,0.00027123,2]
[424871063,1781219452000,-503.0,0.00026552,10]
[424871076,1781219452000,-643.0,0.00027123,2]
[424871077,1781219452000,-643.0,0.00027123,2]
[424871083,1781219452000,-643.0,0.00027123,2]
[424871080,1781219452000,-643.0,0.00027123,2]
[424871084,1781219452000,-643.0,0.00027123,2]
[424871079,1781219452000,-643.0,0.00027123,2]
[424871081,1781219452000,-643.0,0.00027123,2]
[424871086,1781219452000,-643.0,0.00027123,2]
[424871085,1781219452000,-643.0,0.00027123,2]
[424871087,1781219452000,-643.0,0.00027123,2]
[424871088,1781219452000,-643.0,0.00027123,2]
[424871037,1781219452000,-167.0,0.00025,2]
[424871075,1781219452000,-643.0,0.00027123,2]
[424871059,1781219452000,-500.0,0.00026171,2]
[424871082,1781219452000,-643.0,0.00027123,2]
[424871060,1781219452000,-159.78,0.00026236,7]
[424871056,1781219452000,-159.78,0.00025842,2]
[424871036,1781219452000,-208.0,0.00025,2]
[424871033,1781219452000,-159.72,0.00024658,2]
[424871041,1781219452000,-532.0,0.00025,2]
[424871038,1781219452000,-3185.8786834,0.00025,2]
[424871040,1781219452000,-284.0,0.00025,2]
[424871039,1781219452000,-594.0,0.00025,2]
[424871050,1781219452000,-159.78,0.00025447,30]
[424871046,1781219452000,-150.0,0.00025373,2]
[424871045,1781219452000,-274.31352451,0.00025333,2]
[424871047,1781219452000,-540.65875253,0.00025409,2]
[424871044,1781219452000,-159.72,0.00025052,7]
[424871035,1781219452000,-500.0,0.00024932,2]
[424871049,1781219452000,-6288.0,0.00025438,5]
[424871057,1781219452000,-159.72,0.00025842,2]
[424871058,1781219452000,-164.27,0.00026,7]
[424871061,1781219452000,-159.72,0.00026236,7]
[424871043,1781219452000,-159.78,0.00025052,7]
[424871055,1781219452000,-1340.83,0.00025786,2]
[424871062,1781219452000,-344.6,0.00026296,2]
[424871054,1781219452000,-154.32189334,0.00025692,2]
[424871053,1781219452000,-327.12986567,0.00025613,2]
[424871048,1781219452000,-500.0,0.00025409,2]
[424871051,1781219452000,-159.72,0.00025447,30]
[424871042,1781219452000,-462.0,0.00025,2]
[424871052,1781219452000,-503.0,0.00025483,9]
[424871128,1781219453000,-500.0,0.00027123,2]
[424871119,1781219453000,-500.0,0.00027123,2]
[424871122,1781219453000,-500.0,0.00027123,2]
[424871126,1781219453000,-500.0,0.00027123,2]
[424871125,1781219453000,-500.0,0.00027123,2]
[424871117,1781219453000,-500.0,0.00027123,2]
[424871121,1781219453000,-500.0,0.00027123,2]
[424871124,1781219453000,-500.0,0.00027123,2]
[424871120,1781219453000,-500.0,0.00027123,2]
[424871123,1781219453000,-500.0,0.00027123,2]
[424871118,1781219453000,-500.0,0.00027123,2]
[424871127,1781219453000,-500.0,0.00027123,2]
[424871129,1781219453000,-500.0,0.00027123,2]
[424871131,1781219453000,-500.0,0.00027123,2]
[424871141,1781219453000,-383.13351812,0.00027123,2]
[424871133,1781219453000,-500.0,0.00027123,2]
[424871132,1781219453000,-500.0,0.00027123,2]
[424871134,1781219453000,-500.0,0.00027123,2]
[424871135,1781219453000,-500.0,0.00027123,2]
[424871138,1781219453000,-500.0,0.00027123,2]
[424871136,1781219453000,-500.0,0.00027123,2]
[424871137,1781219453000,-337.0775293,0.00027123,2]
[424871139,1781219453000,-500.0,0.00027123,2]
[424871116,1781219453000,-500.0,0.00027123,2]
[424871130,1781219453000,-500.0,0.00027123,2]
[424871107,1781219453000,-747.0,0.00027123,2]
[424871103,1781219453000,-747.0,0.00027123,2]
[424871115,1781219453000,-748.55367414,0.00027123,2]
[424871089,1781219453000,-643.0,0.00027123,2]
[424871090,1781219453000,-643.0,0.00027123,2]
[424871091,1781219453000,-659.48220851,0.00027123,2]
[424871093,1781219453000,-747.0,0.00027123,2]
[424871092,1781219453000,-747.0,0.00027123,2]
[424871095,1781219453000,-747.0,0.00027123,2]
[424871094,1781219453000,-747.0,0.00027123,2]
[424871096,1781219453000,-747.0,0.00027123,2]
[424871097,1781219453000,-747.0,0.00027123,2]
[424871100,1781219453000,-747.0,0.00027123,2]
[424871098,1781219453000,-747.0,0.00027123,2]
[424871114,1781219453000,-747.0,0.00027123,2]
[424871099,1781219453000,-747.0,0.00027123,2]
[424871142,1781219453000,-193.20694442,0.00027334,7]
[424871102,1781219453000,-747.0,0.00027123,2]
[424871101,1781219453000,-747.0,0.00027123,2]
[424871105,1781219453000,-747.0,0.00027123,2]
[424871106,1781219453000,-747.0,0.00027123,2]
[424871112,1781219453000,-747.0,0.00027123,2]
[424871111,1781219453000,-747.0,0.00027123,2]
[424871109,1781219453000,-747.0,0.00027123,2]
[424871108,1781219453000,-747.0,0.00027123,2]
[424871110,1781219453000,-747.0,0.00027123,2]
[424871113,1781219453000,-747.0,0.00027123,2]
[424871104,1781219453000,-747.0,0.00027123,2]
[424871146,1781219453000,-181.67215822,0.00027334,7]
[424871140,1781219453000,-500.0,0.00027123,2]
[424871145,1781219453000,-169.13822474,0.00027334,7]
[424871174,1781219453000,-150.0,0.00027973,2]
[424871171,1781219453000,-164.25,0.00027912,2]
[424871178,1781219453000,-164.25,0.00028093,30]
[424871177,1781219453000,-159.72,0.00028047,2]
[424871180,1781219453000,-159.81,0.0002813,7]
[424871181,1781219453000,-159.79,0.0002813,7]
[424871179,1781219453000,-164.27,0.000281,7]
[424871182,1781219453000,-273.28,0.00028194,7]
[424871186,1781219453000,-273.28,0.00028355,2]
[424871185,1781219453000,-164.25,0.00028275,7]
[424871184,1781219453000,-344.6,0.00028267,2]
[424871183,1781219453000,-165.84,0.000282,7]
[424871187,1781219453000,-164.25,0.00028456,2]
[424871190,1781219453000,-221.84556506,0.00028626,7]
[424871191,1781219453000,-386.41388884,0.00028626,7]
[424871188,1781219453000,-273.28,0.00028516,30]
[424871196,1781219453000,-153.28769057,0.00028626,2]
[424871195,1781219453000,-338.27644948,0.00028626,7]
[424871193,1781219453000,-243.39749697,0.00028626,7]
[424871189,1781219453000,-274.31352451,0.00028522,2]
[424871194,1781219453000,-338.78710269,0.00028626,7]
[424871192,1781219453000,-400.95471181,0.00028626,7]
[424871197,1781219453000,-363.34431644,0.00028626,7]
[424871144,1781219453000,-169.39355135,0.00027334,7]
[424871198,1781219453000,-156.0553129,0.00028626,7]
[424871176,1781219453000,-159.78,0.00028047,2]
[424871173,1781219453000,-159.72,0.00027964,30]
[424871199,1781219453000,-442.2927926,0.00028626,7]
[424871169,1781219453000,-159.78,0.00027881,7]
[424871172,1781219453000,-159.78,0.00027964,30]
[424871149,1781219453000,-1500.0,0.00027397,2]
[424871148,1781219453000,-150.66092755,0.00027336,7]
[424871143,1781219453000,-200.4773559,0.00027334,7]
[424871152,1781219453000,-500.0,0.00027548,7]
[424871151,1781219453000,-500.0,0.000275,7]
[424871153,1781219453000,-164.25,0.0002755,30]
[424871150,1781219453000,-165.84,0.000274,7]
[424871165,1781219453000,-327.12986567,0.00027786,2]
[424871155,1781219453000,-159.78,0.0002755,2]
[424871157,1781219453000,-187.0,0.00027562,2]
[424871156,1781219453000,-159.72,0.0002755,2]
[424871147,1781219453000,-221.1463963,0.00027334,7]
[424871167,1781219453000,-159.72,0.00027798,2]
[424871163,1781219453000,-159.72,0.00027715,30]
[424871160,1781219453000,-159.72,0.00027632,7]
[424871164,1781219453000,-164.25,0.00027731,7]
[424871158,1781219453000,-503.0,0.00027621,11]
[424871162,1781219453000,-159.78,0.00027715,30]
[424871159,1781219453000,-159.78,0.00027632,7]
[424871161,1781219453000,-273.28,0.00027711,7]